{"text_format":"1","workbook":"xlsx","n_sheets":2,"sheets":["자동고침옵션","Sheet1"],"not_rendered":{"charts":0,"images":0,"macros":1,"external_links":0,"defined_names":0,"comments":0,"pivot_tables":0},"unopened":[],"bounds":{"document_bytes":16777216,"sheet_cells":100000,"rows_first":2000,"rows_last":500,"rows_between":2000,"halvings":0,"cell_chars":16384,"cell_head_chars":4096},"cells_cut":0,"cells_raw":0,"read":"whole","date_system":"1900"}

{"sheet":"자동고침옵션","index":0,"n_rows":1312,"n_cols":2,"rows_kept":1312,"cut":false,"hidden":false,"merged":[]}
["입력(From)","결과(To)"]
["(c)","©"]
["(e)","€"]
["(ks)","㉿"]
["(r)","®"]
["(tel)","☎"]
["(tm)","™"]
["* 부터","*부터"]
["* 쯤","*쯤"]
["*ㄴ것","*ㄴ 것"]
["*ㄴ것은","*ㄴ 것은"]
["*ㄴ것을","*ㄴ 것을"]
["*ㄴ것이","*ㄴ 것이"]
["*ㄹ 수록","*ㄹ수록"]
["*ㄹ 수없는","*ㄹ 수 없는"]
["*ㄹ 수있는","*ㄹ 수 있는"]
["*ㄹ것","*ㄹ 것"]
["*ㄹ것은","*ㄹ 것은"]
["*ㄹ겸","*ㄹ 겸"]
["*ㄹ껄","*ㄹ걸"]
["*ㄹ듯","*ㄹ 듯"]
["*ㄹ때","*ㄹ 때"]
["*ㄹ런지","*ㄹ는지"]
["*ㄹ터이니","*ㄹ 터이니"]
["*ㄹ테니","*ㄹ 테니"]
["*ㄹ테니까","*ㄹ 테니까"]
["*ㄹ테다","*ㄹ 테다"]
["*ㄹ테면","*ㄹ 테면"]
["*같은","* 같은"]
["*기는 커녕","*기는커녕"]
["*따위","* 따위"]
["*때문에","* 때문에"]
["*마져","*마저"]
["*및","* 및"]
["*여개","*여 개"]
["*을수 밖에","*을 수밖에"]
["*을수가","*을 수가"]
["*을수는","*을 수는"]
["*을수밖에","*을 수밖에"]
["*을수없는","*을 수 없는"]
["*을수없이","*을 수 없이"]
["*을수있는","*을 수 있는"]
["*읍니까","*습니까"]
["*읍니다","*습니다"]
["*할수 밖에","*할 수밖에"]
["*할수가","*할 수가"]
["*할수는","*할 수는"]
["*할수밖에","*할 수밖에"]
["*할수없는","*할 수 없는"]
["*할수없이","*할 수 없이"]
["*할수있는","*할 수 있는"]
["-x-","※"]
["...","…"]
["abbout","about"]
["abotu","about"]
["abouta","about a"]
["aboutit","about it"]
["aboutthe","about the"]
["abscence","absence"]
["accesories","accessories"]
["accidant","accident"]
["accomodate","accommodate"]
["accordingto","according to"]
["accross","across"]
["acheive","achieve"]
["acheived","achieved"]
["acheiving","achieving"]
["acn","can"]
["acommodate","accommodate"]
["acomodate","accommodate"]
["actualyl","actually"]
["additinal","additional"]
["addtional","additional"]
["adequit","adequate"]
["adequite","adequate"]
["adn","and"]
["advanage","advantage"]
["affraid","afraid"]
["afterthe","after the"]
["againstt he","against the"]
["aganist","against"]
["aggresive","aggressive"]
["agian","again"]
["agreemeent","agreement"]
["agreemeents","agreements"]
["agreemnet","agreement"]
["agreemnets","agreements"]
["agressive","aggressive"]
["ahppen","happen"]
["ahve","have"]
["allwasy","always"]
["allwyas","always"]
["almots","almost"]
["almsot","almost"]
["alomst","almost"]
["alot","a lot"]
["alraedy","already"]
["alreayd","already"]
["alreday","already"]
["alwasy","always"]
["alwats","always"]
["alway","always"]
["alwyas","always"]
["amde","made"]
["Ameria","America"]
["amke","make"]
["amkes","makes"]
["anbd","and"]
["andone","and one"]
["andt he","and the"]
["andteh","and the"]
["andthe","and the"]
["anothe","another"]
["anual","annual"]
["apparant","apparent"]
["apparrent","apparent"]
["appearence","appearance"]
["appeares","appears"]
["applicaiton","application"]
["applicaitons","applications"]
["applyed","applied"]
["appointiment","appointment"]
["approrpiate","appropriate"]
["approrpriate","appropriate"]
["aquisition","acquisition"]
["aquisitions","acquisitions"]
["aren;t","aren’t"]
["arguement","argument"]
["arguements","arguments"]
["arn't","aren’t"]
["arond","around"]
["artical","article"]
["articel","article"]
["asdvertising","advertising"]
["askt he","ask the"]
["assistent","assistant"]
["asthe","as the"]
["atention","attention"]
["atmospher","atmosphere"]
["attentioin","attention"]
["atthe","at the"]
["audeince","audience"]
["audiance","audience"]
["availalbe","available"]
["awya","away"]
["aywa","away"]
["bakc","back"]
["balence","balance"]
["ballance","balance"]
["baout","about"]
["bcak","back"]
["beacuse","because"]
["becasue","because"]
["becaus","because"]
["becausea","because a"]
["becauseof","because of"]
["becausethe","because the"]
["becauseyou","because you"]
["becomeing","becoming"]
["becomming","becoming"]
["becuase","because"]
["becuse","because"]
["befoer","before"]
["beggining","beginning"]
["begining","beginning"]
["beginining","beginning"]
["beleiev","believe"]
["beleieve","believe"]
["beleif","belief"]
["beleive","believe"]
["beleived","believed"]
["beleives","believes"]
["benifit","benefit"]
["benifits","benefits"]
["betwen","between"]
["beutiful","beautiful"]
["blase","blasé"]
["boxs","boxes"]
["brodcast","broadcast"]
["butthe","but the"]
["bve","be"]
["byt he","by the"]
["cafe","café"]
["caharcter","character"]
["calcullated","calculated"]
["calulated","calculated"]
["can't of been","can’t have been"]
["can;t","can’t"]
["candidtae","candidate"]
["candidtaes","candidates"]
["catagory","category"]
["categiory","category"]
["certian","certain"]
["challange","challenge"]
["challanges","challenges"]
["chaneg","change"]
["chanegs","changes"]
["changable","changeable"]
["changeing","changing"]
["changng","changing"]
["charachter","character"]
["charachters","characters"]
["charactor","character"]
["charecter","character"]
["charector","character"]
["cheif","chief"]
["chekc","check"]
["chnage","change"]
["cieling","ceiling"]
["circut","circuit"]
["claer","clear"]
["claered","cleared"]
["claerly","clearly"]
["cliant","client"]
["cliche","cliché"]
["cna","can"]
["colection","collection"]
["comanies","companies"]
["comany","company"]
["comapnies","companies"]
["comapny","company"]
["combintation","combination"]
["comited","committed"]
["comittee","committee"]
["commadn","command"]
["comming","coming"]
["commitee","committee"]
["committe","committee"]
["committment","commitment"]
["committments","commitments"]
["committy","committee"]
["comntain","contain"]
["comntains","contains"]
["compair","compare"]
["company;s","company’s"]
["compleated","completed"]
["compleatly","completely"]
["compleatness","completeness"]
["completly","completely"]
["completness","completeness"]
["composate","composite"]
["comtain","contain"]
["comtains","contains"]
["comunicate","communicate"]
["comunity","community"]
["condolances","condolences"]
["conected","connected"]
["conferance","conference"]
["confirmmation","confirmation"]
["considerit","considerate"]
["considerite","considerate"]
["consonent","consonant"]
["conspiricy","conspiracy"]
["consultent","consultant"]
["convertable","convertible"]
["cooparate","cooperate"]
["cooporate","cooperate"]
["corproation","corporation"]
["corproations","corporations"]
["corruptable","corruptible"]
["cotten","cotton"]
["coudl","could"]
["coudln't","couldn’t"]
["coudn't","couldn’t"]
["could of been","could have been"]
["could of had","could have had"]
["couldn;t","couldn’t"]
["couldnt","couldn’t"]
["couldthe","could the"]
["cpoy","copy"]
["creme","crème"]
["ctaegory","category"]
["cusotmer","customer"]
["cusotmers","customers"]
["cutsomer","customer"]
["cutsomers","customers"]
["cxan","can"]
["danceing","dancing"]
["dcument","document"]
["deatils","details"]
["decison","decision"]
["decisons","decisions"]
["decor","décor"]
["defendent","defendant"]
["definately","definitely"]
["deja vu","déjà vu"]
["deptartment","department"]
["desicion","decision"]
["desicions","decisions"]
["desision","decision"]
["desisions","decisions"]
["detente","détente"]
["develeoprs","developers"]
["devellop","develop"]
["develloped","developed"]
["develloper","developer"]
["devellopers","developers"]
["develloping","developing"]
["devellopment","development"]
["devellopments","developments"]
["devellops","develop"]
["develope","develop"]
["developement","development"]
["developements","developments"]
["developor","developer"]
["developors","developers"]
["develpment","development"]
["diaplay","display"]
["didint","didn’t"]
["didn;t","didn’t"]
["didnot","did not"]
["didnt","didn’t"]
["difefrent","different"]
["diferences","differences"]
["differance","difference"]
["differances","differences"]
["differant","different"]
["differemt","different"]
["differnt","different"]
["diffrent","different"]
["directer","director"]
["directers","directors"]
["directiosn","direction"]
["disatisfied","dissatisfied"]
["discoverd","discovered"]
["disign","design"]
["dispaly","display"]
["dissonent","dissonant"]
["distribusion","distribution"]
["divsion","division"]
["do'nt","don’t"]
["docuement","documents"]
["docuemnt","document"]
["documetn","document"]
["documnet","document"]
["documnets","documents"]
["doe snot","does not"]
["doens't","doesn’t"]
["doese","does"]
["doesn;t","doesn’t"]
["doesnt","doesn’t"]
["doign","doing"]
["doimg","doing"]
["doind","doing"]
["dollers","dollars"]
["don't no","don’t know"]
["don;t","don’t"]
["donig","doing"]
["dont","don’t"]
["dosn't","doesn’t"]
["driveing","driving"]
["drnik","drink"]
["eclair","éclair"]
["efel","feel"]
["effecient","efficient"]
["efort","effort"]
["eforts","efforts"]
["ehr","her"]
["eligable","eligible"]
["embarass","embarrass"]
["emigre","émigré"]
["enought","enough"]
["entree","entrée"]
["equippment","equipment"]
["equivalant","equivalent"]
["esle","else"]
["especally","especially"]
["especialyl","especially"]
["espesially","especially"]
["excellant","excellent"]
["excercise","exercise"]
["exchagne","exchange"]
["exchagnes","exchanges"]
["excitment","excitement"]
["exhcange","exchange"]
["exhcanges","exchanges"]
["experiance","experience"]
["experienc","experience"]
["exprience","experience"]
["exprienced","experienced"]
["eyt","yet"]
["facade","façade"]
["faeture","feature"]
["faetures","features"]
["familair","familiar"]
["familar","familiar"]
["familliar","familiar"]
["fammiliar","familiar"]
["feild","field"]
["feilds","fields"]
["fianlly","finally"]
["fidn","find"]
["finalyl","finally"]
["firends","friends"]
["firts","first"]
["follwo","follow"]
["follwoing","following"]
["fora","for a"]
["foriegn","foreign"]
["forthe","for the"]
["forwrd","forward"]
["forwrds","forwards"]
["foudn","found"]
["foward","forward"]
["fowards","forwards"]
["freind","friend"]
["freindly","friendly"]
["freinds","friends"]
["frmo","from"]
["fromt he","from the"]
["fromthe","from the"]
["furneral","funeral"]
["fwe","few"]
["garantee","guarantee"]
["gaurd","guard"]
["gemeral","general"]
["gerat","great"]
["geting","getting"]
["gettin","getting"]
["gievn","given"]
["giveing","giving"]
["gloabl","global"]
["goign","going"]
["gonig","going"]
["govenment","government"]
["goverment","government"]
["gruop","group"]
["gruops","groups"]
["grwo","grow"]
["guidlines","guidelines"]
["hadbeen","had been"]
["hadn;t","hadn’t"]
["haev","have"]
["hapen","happen"]
["hapened","happened"]
["hapening","happening"]
["hapens","happens"]
["happend","happened"]
["hasbeen","has been"]
["hasn;t","hasn’t"]
["hasnt","hasn’t"]
["havebeen","have been"]
["haveing","having"]
["haven;t","haven’t"]
["hda","had"]
["he;ll","he’ll"]
["hearign","hearing"]
["helpfull","helpful"]
["here;s","here’s"]
["hesaid","he said"]
["hewas","he was"]
["hge","he"]
["hismelf","himself"]
["hlep","help"]
["hsa","has"]
["hsi","his"]
["hte","the"]
["htere","there"]
["htese","these"]
["htey","they"]
["hting","thing"]
["htink","think"]
["htis","this"]
["htp:","http:"]
["http:\\\\","http://"]
["httpL","http:"]
["hvae","have"]
["hvaing","having"]
["hwich","which"]
["i","I"]
["i snot","is not"]
["I\"m","I’m"]
["I;d","I’d"]
["I;ll","I’ll"]
["idae","idea"]
["idaes","ideas"]
["identofy","identify"]
["ihs","his"]
["iits the","it’s the"]
["imediate","immediate"]
["imediatly","immediately"]
["immediatly","immediately"]
["importent","important"]
["importnat","important"]
["impossable","impossible"]
["improvemnt","improvement"]
["improvment","improvement"]
["includ","include"]
["indecate","indicate"]
["indenpendence","independence"]
["indenpendent","independent"]
["indepedent","independent"]
["independance","independence"]
["independant","independent"]
["influance","influence"]
["infomation","information"]
["informatoin","information"]
["inital","initial"]
["instaleld","installed"]
["insted","instead"]
["insurence","insurance"]
["int he","in the"]
["inteh","in the"]
["interum","interim"]
["inthe","in the"]
["inwhich","in which"]
["isn;t","isn’t"]
["isthe","is the"]
["it snot","it’s not"]
["it' snot","it’s not"]
["it;ll","it’ll"]
["it;s","it’s"]
["itis","it is"]
["ititial","initial"]
["itnerest","interest"]
["itnerested","interested"]
["itneresting","interesting"]
["itnerests","interests"]
["its a","it’s a"]
["its the","it’s the"]
["itwas","it was"]
["iwll","will"]
["iwth","with"]
["jsut","just"]
["jugment","judgment"]
["knowldge","knowledge"]
["knowlege","knowledge"]
["knwo","know"]
["knwon","known"]
["knwos","knows"]
["konw","know"]
["konwn","known"]
["konws","knows"]
["labratory","laboratory"]
["lastyear","last year"]
["learnign","learning"]
["lenght","length"]
["let's him","lets him"]
["let's it","lets it"]
["let;s","let’s"]
["levle","level"]
["libary","library"]
["librarry","library"]
["librery","library"]
["liek","like"]
["liekd","liked"]
["lieutenent","lieutenant"]
["liev","live"]
["likly","likely"]
["lisense","license"]
["littel","little"]
["litttle","little"]
["liuke","like"]
["liveing","living"]
["loev","love"]
["lonly","lonely"]
["lookign","looking"]
["maintenence","maintenance"]
["makeing","making"]
["managment","management"]
["mantain","maintain"]
["marraige","marriage"]
["may of been","may have been"]
["may of had","may have had"]
["memeber","member"]
["merchent","merchant"]
["mesage","message"]
["mesages","messages"]
["might of been","might have been"]
["might of had","might have had"]
["mispell","misspell"]
["mispelling","misspelling"]
["mispellings","misspellings"]
["mkae","make"]
["mkaes","makes"]
["mkaing","making"]
["moeny","money"]
["morgage","mortgage"]
["mroe","more"]
["must of been","must have been"]
["must of had","must have had"]
["mysefl","myself"]
["myu","my"]
["naive","naïve"]
["necassarily","necessarily"]
["necassary","necessary"]
["neccessarily","necessarily"]
["neccessary","necessary"]
["necesarily","necessarily"]
["necesary","necessary"]
["negotiaing","negotiating"]
["nkow","know"]
["nothign","nothing"]
["nver","never"]
["nwe","new"]
["nwo","now"]
["obediant","obedient"]
["ocasion","occasion"]
["occassion","occasion"]
["occured","occurred"]
["occurence","occurrence"]
["occurrance","occurrence"]
["ocur","occur"]
["oeprator","operator"]
["ofits","of its"]
["oft he","of the"]
["ofthe","of the"]
["oging","going"]
["ohter","other"]
["omre","more"]
["oneof","one of"]
["onepoint","one point"]
["ont he","on the"]
["onthe","on the"]
["onyl","only"]
["oppasite","opposite"]
["opperation","operation"]
["oppertunity","opportunity"]
["opposate","opposite"]
["opposible","opposable"]
["opposit","opposite"]
["oppotunities","opportunities"]
["oppotunity","opportunity"]
["orginization","organization"]
["orginized","organized"]
["otehr","other"]
["otu","out"]
["outof","out of"]
["overthe","over the"]
["owrk","work"]
["owuld","would"]
["oxident","oxidant"]
["papaer","paper"]
["parliment","parliament"]
["partof","part of"]
["paymetn","payment"]
["paymetns","payments"]
["pciture","picture"]
["peice","piece"]
["peices","pieces"]
["peolpe","people"]
["peopel","people"]
["percentof","percent of"]
["percentto","percent to"]
["performence","performance"]
["perhasp","perhaps"]
["perhpas","perhaps"]
["permanant","permanent"]
["perminent","permanent"]
["personalyl","personally"]
["pleasent","pleasant"]
["poeple","people"]
["porblem","problem"]
["porblems","problems"]
["porvide","provide"]
["possable","possible"]
["postition","position"]
["potentialy","potentially"]
["pregnent","pregnant"]
["presance","presence"]
["probelm","problem"]
["probelms","problems"]
["prominant","prominent"]
["protege","protégé"]
["protoge","protégé"]
["psoition","position"]
["ptogress","progress"]
["puting","putting"]
["pwoer","power"]
["quater","quarter"]
["quaters","quarters"]
["quesion","question"]
["quesions","questions"]
["questioms","questions"]
["questiosn","questions"]
["questoin","question"]
["quetion","question"]
["quetions","questions"]
["realyl","really"]
["reccomend","recommend"]
["reccommend","recommend"]
["receieve","receive"]
["recieve","receive"]
["recieved","received"]
["recieving","receiving"]
["recomend","recommend"]
["recomendation","recommendation"]
["recomendations","recommendations"]
["recomended","recommended"]
["reconize","recognize"]
["recrod","record"]
["religous","religious"]
["reluctent","reluctant"]
["remeber","remember"]
["reommend","recommend"]
["representativs","representatives"]
["representives","representatives"]
["represetned","represented"]
["represnt","represent"]
["reserach","research"]
["resollution","resolution"]
["resorces","resources"]
["respomd","respond"]
["respomse","response"]
["responce","response"]
["responsability","responsibility"]
["responsable","responsible"]
["responsibile","responsible"]
["responsiblity","responsibility"]
["restaraunt","restaurant"]
["restuarant","restaurant"]
["reult","result"]
["reveiw","review"]
["reveiwing","reviewing"]
["rwite","write"]
["rythm","rhythm"]
["saidhe","said he"]
["saidit","said it"]
["saidt he","said the"]
["saidthat","said that"]
["saidthe","said the"]
["scedule","schedule"]
["sceduled","scheduled"]
["seance","séance"]
["secratary","secretary"]
["sectino","section"]
["seh","she"]
["selectoin","selection"]
["sentance","sentence"]
["separeate","separate"]
["seperate","separate"]
["sercumstances","circumstances"]
["shcool","school"]
["she;ll","she’ll"]
["shesaid","she said"]
["shineing","shining"]
["shiped","shipped"]
["shoudl","should"]
["shoudln't","shouldn’t"]
["should of been","should have been"]
["should of had","should have had"]
["shouldent","shouldn’t"]
["shouldn;t","shouldn’t"]
["shouldnt","shouldn’t"]
["showinf","showing"]
["signifacnt","significant"]
["simalar","similar"]
["similiar","similar"]
["simpyl","simply"]
["sincerly","sincerely"]
["sitll","still"]
["smae","same"]
["smoe","some"]
["soem","some"]
["sohw","show"]
["soical","social"]
["somethign","something"]
["someting","something"]
["somewaht","somewhat"]
["somthing","something"]
["somtimes","sometimes"]
["sot hat","so that"]
["soudn","sound"]
["soudns","sounds"]
["speach","speech"]
["specificaly","specifically"]
["specificalyl","specifically"]
["statment","statement"]
["statments","statements"]
["stnad","stand"]
["stopry","story"]
["stoyr","story"]
["stpo","stop"]
["strentgh","strength"]
["stroy","story"]
["struggel","struggle"]
["strugle","struggle"]
["studnet","student"]
["successfull","successful"]
["successfuly","successfully"]
["successfulyl","successfully"]
["sucess","success"]
["sucessfull","successful"]
["sufficiant","sufficient"]
["suposed","supposed"]
["suppossed","supposed"]
["suprise","surprise"]
["suprised","surprised"]
["swiming","swimming"]
["tahn","than"]
["taht","that"]
["talekd","talked"]
["talkign","talking"]
["tath","that"]
["tecnical","technical"]
["teh","the"]
["tehy","they"]
["tellt he","tell the"]
["termoil","turmoil"]
["tghe","the"]
["tghis","this"]
["thansk","thanks"]
["thats","that’s"]
["thatt he","that the"]
["thatthe","that the"]
["thecompany","the company"]
["thefirst","the first"]
["thegovernment","the government"]
["their are","there are"]
["their is","there is"]
["themself","themselves"]
["themselfs","themselves"]
["thenew","the new"]
["there's is","theirs is"]
["theri","their"]
["thesame","the same"]
["thetwo","the two"]
["they're are","there are"]
["they're is","there is"]
["they;l","they’ll"]
["they;ll","they’ll"]
["they;r","they’re"]
["they;re","they’re"]
["they;v","they’ve"]
["they;ve","they’ve"]
["theyll","they’ll"]
["theyve","they’ve"]
["thgat","that"]
["thge","the"]
["thier","their"]
["thigsn","things"]
["thisyear","this year"]
["thna","than"]
["thne","then"]
["thnig","thing"]
["thnigs","things"]
["threatend","threatened"]
["thsi","this"]
["thsoe","those"]
["thta","that"]
["tihs","this"]
["timne","time"]
["tiogether","together"]
["tje","the"]
["tjhe","the"]
["tkae","take"]
["tkaes","takes"]
["tkaing","taking"]
["tlaking","talking"]
["todya","today"]
["togehter","together"]
["toldt he","told the"]
["tomorow","tomorrow"]
["tongiht","tonight"]
["tonihgt","tonight"]
["tot he","to the"]
["totaly","totally"]
["totalyl","totally"]
["tothe","to the"]
["towrad","toward"]
["traditionalyl","traditionally"]
["transfered","transferred"]
["truely","truly"]
["truley","truly"]
["tryed","tried"]
["tthe","the"]
["tyhat","that"]
["tyhe","the"]
["udnerstand","understand"]
["understnad","understand"]
["undert he","under the"]
["UnitedStates","United States"]
["unliek","unlike"]
["unpleasently","unpleasantly"]
["untilll","until"]
["useing","using"]
["usualyl","usually"]
["veyr","very"]
["virtualyl","virtually"]
["vis-a-vis","vis-à-vis"]
["vrey","very"]
["vulnerible","vulnerable"]
["wa snot","was not"]
["waht","what"]
["warrent","warrant"]
["wasnt","wasn’t"]
["watn","want"]
["we;d","we’d"]
["we;ll","we’ll"]
["we;re","we’re"]
["we;ve","we’ve"]
["wehn","when"]
["wern't","weren’t"]
["werre","were"]
["what;s","what’s"]
["whcih","which"]
["whent he","when the"]
["where;s","where’s"]
["wherre","where"]
["whic","which"]
["whicht he","which the"]
["whihc","which"]
["who;s","who’s"]
["who;ve","who’ve"]
["whta","what"]
["wief","wife"]
["wierd","weird"]
["wihch","which"]
["wiht","with"]
["will of been","will have been"]
["will of had","will have had"]
["willbe","will be"]
["windoes","windows"]
["witha","with a"]
["withe","with"]
["witht he","with the"]
["withthe","with the"]
["wiull","will"]
["wnat","want"]
["wnated","wanted"]
["wnats","wants"]
["wo'nt","won’t"]
["woh","who"]
["wohle","whole"]
["wokr","work"]
["won;t","won’t"]
["woudl","would"]
["woudln't","wouldn’t"]
["would of been","would have been"]
["would of had","would have had"]
["wouldbe","would be"]
["wouldn;t","wouldn’t"]
["wouldnt","wouldn’t"]
["wriet","write"]
["writting","writing"]
["wrod","word"]
["wroet","wrote"]
["wroking","working"]
["wtih","with"]
["wuould","would"]
["wya","way"]
["yera","year"]
["yeras","years"]
["yersa","years"]
["yoiu","you"]
["you're own","your own"]
["you;d","you’d"]
["you;re","you’re"]
["youare","you are"]
["your a","you’re a"]
["your an","you’re an"]
["your her","you’re her"]
["your here","you’re here"]
["your his","you’re his"]
["your the","you’re the"]
["your their","you’re their"]
["your your","you’re your"]
["youve","you’ve"]
["ytou","you"]
["yuo","you"]
["yuor","your"]
["가까와","가까워"]
["가까왔","가까웠"]
["가운대","가운데"]
["가정난","가정란"]
["강강술레","강강술래"]
["강남콩","강낭콩"]
["갯수","개수"]
["거드럼","거드름"]
["거짓말장이","거짓말쟁이"]
["겁장이","겁쟁이"]
["겸연적","겸연쩍"]
["경쟁율","경쟁률"]
["계시문","게시문"]
["계시판","게시판"]
["계양대","게양대"]
["고마와","고마워"]
["고마왔","고마웠"]
["고전분투","고군분투"]
["곱배기","곱빼기"]
["공념불","공염불"]
["광고난","광고란"]
["구두닦기","구두닦이"]
["구두주걱","구둣주걱"]
["궤선","괘선"]
["귀병","귓병"]
["기여코","기어코"]
["김치찌게","김치찌개"]
["까스","가스"]
["깍뚜기","깍두기"]
["깜쪽같","감쪽같"]
["깨끗히","깨끗이"]
["껍질채","껍질째"]
["끄나불","끄나풀"]
["나무가지","나뭇가지"]
["나무잎","나뭇잎"]
["나즈막이","나지막이"]
["나즈막히","나지막이"]
["나즉이","나직이"]
["나즉히","나직이"]
["나침판","나침반"]
["남여","남녀"]
["남존녀비","남존여비"]
["넌즈시","넌지시"]
["넌픽션","논픽션"]
["네째","넷째"]
["높히","높이"]
["눈섭","눈썹"]
["달달이","다달이"]
["담배값","담뱃값"]
["담배대","담뱃대"]
["담배불","담뱃불"]
["담배순","담뱃순"]
["담배재","담뱃재"]
["대장쟁이","대장장이"]
["댓가","대가"]
["더더우기","더더욱"]
["더우기","더욱이"]
["더이상","더 이상"]
["덩쿨","덩굴"]
["데이타","데이터"]
["돐","돌"]
["된장찌게","된장찌개"]
["두드래기","두드러기"]
["두째","둘째"]
["뒷쪽","뒤쪽"]
["등하교길","등하굣길"]
["디스킷","디스켓"]
["디지탈","디지털"]
["디지틀","디지털"]
["딜레머","딜레마"]
["딸기쨈","딸기잼"]
["떡가레","떡가래"]
["떡볶기","떡볶이"]
["뜨게실","뜨개실"]
["뜨게질","뜨개질"]
["띠어쓰기","띄어쓰기"]
["라이센스","라이선스"]
["랑데뷰","랑데부"]
["렌트카","렌터카"]
["로얄티","로열티"]
["로이로제","노이로제"]
["마굿간","마구간"]
["마스타","마스터"]
["마춤","맞춤"]
["마춰","맞춰"]
["막내누이","막냇누이"]
["막내동생","막냇동생"]
["막내동이","막내둥이"]
["막내사위","막냇사위"]
["막내삼촌","막냇삼촌"]
["막냇딸","막내딸"]
["막냇며느리","막내며느리"]
["만석군","만석꾼"]
["만연필","만년필"]
["많히","많이"]
["매스터키","마스터키"]
["맨숀","맨션"]
["머릿말","머리말"]
["먼지털이","먼지떨이"]
["멍개","멍게"]
["메뉴얼","매뉴얼"]
["메세지","메시지"]
["메카니즘","메커니즘"]
["멧돌","맷돌"]
["명중율","명중률"]
["몇개","몇 개"]
["몇년","몇 년"]
["몇달","몇 달"]
["몇명","몇 명"]
["모기불","모깃불"]
["모기소리","모깃소리"]
["모래둑","모랫둑"]
["모래바닥","모랫바닥"]
["모래벌","모래펄"]
["모밀","메밀"]
["모자르","모자라"]
["몰핀","모르핀"]
["몽타지","몽타주"]
["문제거리","문젯거리"]
["물끄럼이","물끄러미"]
["뭉개구름","뭉게구름"]
["미다지","미닫이"]
["미류나무","미루나무"]
["미스테리","미스터리"]
["미시가루","미숫가루"]
["미싯가루","미숫가루"]
["바람끼","바람기"]
["바베큐","바비큐"]
["반짓고리","반짇고리"]
["발자욱","발자국"]
["방아간","방앗간"]
["배놀이","뱃놀이"]
["배당율","배당률"]
["배멀미","뱃멀미"]
["배삯","뱃삯"]
["배합율","배합률"]
["백분률","백분율"]
["버들나무","버드나무"]
["버젼","버전"]
["버즘","버짐"]
["벤취","벤치"]
["부르조아","부르주아"]
["부억","부엌"]
["부주금","부조금"]
["블럭","블록"]
["비웃움","비웃음"]
["비지니스","비즈니스"]
["빈털털이","빈털터리"]
["빛갈","빛깔"]
["뼉다귀","뼈다귀"]
["뾰두락지","뾰루지"]
["뿐만아니라","뿐만 아니라"]
["사망율","사망률"]
["삭바느질","삯바느질"]
["삭월세","사글세"]
["산수갑산","삼수갑산"]
["살고기","살코기"]
["삵괭이","살쾡이"]
["삽바","샅바"]
["새디스트","사디스트"]
["샷다","셔터"]
["서슴치","서슴지"]
["선지국","선짓국"]
["설겆이","설거지"]
["설농탕","설렁탕"]
["설흔","서른"]
["성대묘사","성대모사"]
["세무소","세무서"]
["세째","셋째"]
["센타","센터"]
["소꼽","소꿉"]
["소세지","소시지"]
["소숫점","소수점"]
["송두리채","송두리째"]
["수퍼마켓","슈퍼마켓"]
["수펄","수벌"]
["술레","술래"]
["숨박꼭질","숨바꼭질"]
["숫강아지","수캉아지"]
["숫개","수캐"]
["숫거미","수거미"]
["숫것","수컷"]
["숫고양이","수고양이"]
["숫괭이","수괭이"]
["쉬흔","쉰"]
["스카웃","스카우트"]
["시청율","시청률"]
["시체말","시쳇말"]
["실날","실낱"]
["실업율","실업률"]
["실컨","실컷"]
["심부름군","심부름꾼"]
["심술장이","심술쟁이"]
["싸인펜","사인펜"]
["쌍동이","쌍둥이"]
["써클","서클"]
["씩식","씩씩"]
["아래사람","아랫사람"]
["아래입술","아랫입술"]
["아름다와","아름다워"]
["아름다왔","아름다웠"]
["아뭏든","아무튼"]
["아지랭이","아지랑이"]
["아프터서비스","애프터서비스"]
["아프터써비스","애프터서비스"]
["아흐랫날","아흐렛날"]
["악세사리","액세서리"]
["안밖","안팎"]
["안성마춤","안성맞춤"]
["알맞는","알맞은"]
["알콜","알코올"]
["애시당초","애당초"]
["어깨죽지","어깻죽지"]
["어느듯","어느덧"]
["어쨋든","어쨌든"]
["얼런","얼른"]
["엉겹결에","엉겁결에"]
["에식장","예식장"]
["에어콘","에어컨"]
["엔돌핀","엔도르핀"]
["엘레베이터","엘리베이터"]
["여나문","여남은"]
["여러개","여러 개"]
["여러번","여러 번"]
["여러사람","여러 사람"]
["여러차례","여러 차례"]
["여직껏","여태껏"]
["역활","역할"]
["열력학","열역학"]
["옛부터","예부터"]
["오래동안","오랫동안"]
["오랜동안","오랫동안"]
["오랫만","오랜만"]
["오유월","오뉴월"]
["외가집","외갓집"]
["외곬수","외골수"]
["우룃소리","우렛소리"]
["우스게","우스개"]
["웃도리","윗도리"]
["웃동네","윗동네"]
["웃마을","윗마을"]
["웃사람","윗사람"]
["월급장이","월급쟁이"]
["월셋방","월셋방"]
["윈도우즈","윈도우"]
["윗어른","웃어른"]
["유류상종","유유상종"]
["유틸러티","유틸리티"]
["육계장","육개장"]
["육월","유월"]
["으례","으레"]
["으례이","으레"]
["이에따라","이에 따라"]
["이에앞서","이에 앞서"]
["이와같이","이와 같이"]
["이와관련","이와 관련"]
["이틀날","이튿날"]
["인삿말","인사말"]
["인스탄트","인스턴트"]
["일찌기","일찍이"]
["자그만치","자그마치"]
["잔듸","잔디"]
["잔병치래","잔병치레"]
["잔치날","잔칫날"]
["잔치상","잔칫상"]
["잔치집","잔칫집"]
["장농","장롱"]
["전률","전율"]
["전자랜지","전자레인지"]
["전자렌지","전자레인지"]
["제스추어","제스처"]
["좀체로","좀처럼"]
["좁살","좁쌀"]
["중계상인","중개상인"]
["중매장이","중매쟁이"]
["쥬니어","주니어"]
["쥬스","주스"]
["진도개","진돗개"]
["짜르다","자르다"]
["짜투리","자투리"]
["쪽집개","족집게"]
["쪽집게","족집게"]
["천편일율","천편일률"]
["촛점","초점"]
["최류탄","최루탄"]
["출생율","출생률"]
["치닥거리","치다꺼리"]
["카스테라","카스텔라"]
["칼치","갈치"]
["캐비넷","캐비닛"]
["커텐","커튼"]
["컴플렉스","콤플렉스"]
["코방귀","콧방귀"]
["코흘리게","코흘리개"]
["콜랙션","컬렉션"]
["콧방구","콧방귀"]
["콧배기","코빼기"]
["타게트","타깃"]
["타겟트","타깃"]
["타격율","타격률"]
["탈렌트","탤런트"]
["태줄","탯줄"]
["택견","태껸"]
["테입","테이프"]
["텔레비젼","텔레비전"]
["텔리비전","텔레비전"]
["텔리비젼","텔레비전"]
["통채","통째"]
["통털어","통틀어"]
["파래트","팔레트"]
["파레트","팔레트"]
["페품","폐품"]
["포르투칼","포르투갈"]
["폭팔","폭발"]
["풍지박산","풍비박산"]
["프랑크톤","플랑크톤"]
["플래스틱","플라스틱"]
["플랭카드","플래카드"]
["피라밋","피라미드"]
["필림","필름"]
["핑게","핑계"]
["하니바람","하늬바람"]
["하루강아지","하룻강아지"]
["하마트면","하마터면"]
["한개","한 개"]
["할수 밖에","할 수밖에"]
["할수가","할 수가"]
["할수는","할 수는"]
["할수밖에","할 수밖에"]
["할수없는","할 수 없는"]
["할수없이","할 수 없이"]
["할수있는","할 수 있는"]
["할일없이","하릴없이"]
["해도지","해돋이"]
["해질녁","해 질 녘"]
["햇님","해님"]
["허드래일","허드렛일"]
["허드랫일","허드렛일"]
["허드레일","허드렛일"]
["헤택","혜택"]
["혀바늘","혓바늘"]
["호르라기","호루라기"]
["화이팅","파이팅"]
["화일","파일"]
["확율","확률"]
["회계년도","회계연도"]
["휴계소","휴게소"]
["휴계실","휴게실"]
["흉칙","흉측"]
["희노애락","희로애락"]
["히망","희망"]

{"sheet":"Sheet1","index":1,"n_rows":51,"n_cols":7,"rows_kept":51,"cut":false,"hidden":false,"merged":[[1,4,1,6],[2,4,2,6],[3,4,3,6]]}
["입력(From)","결과(To)","Unicode(10진수)","Unicode(16진수)"]
[null,{"$f":"_xlfn.UNICHAR(C2)","v":"①"},{"$f":"HEX2DEC(\"2460\")","v":9312},{"$f":"DEC2HEX(C2)","v":"2460"},"A열의 내용을 B열의 내용으로 자동고침되도록 추가합니다."]
[null,{"$f":"_xlfn.UNICHAR(C3)","v":"②"},{"$f":"C2+1","v":9313},"2461","A열 값이 없으면 B열이 결과인 목록을 지웁니다."]
[null,"③",{"$f":"C3+1","v":9314},"2462","B열 값이 없으면 A열이 입력인 목록을 지웁니다."]
[null,"④",9315,"2463"]
[null,"⑤",9316,"2464","((16))","⑯","목록에 등록"]
[null,"⑥",9317,"2465",null,"⑯","결과가 \"⑯\"인 목록 삭제"]
[null,"⑦",9318,"2466","((16))",null,"입력이 \"((16))\"인 목록 삭제"]
[null,"⑧",9319,"2467"]
[null,"⑨",9320,"2468"]
[null,"⑩",9321,"2469"]
[null,"⑪",9322,"246A"]
[null,"⑫",9323,"246B"]
[null,"⑬",9324,"246C"]
[null,"⑭",9325,"246D"]
[null,"⑮",9326,"246E"]
[null,{"$f":"_xlfn.UNICHAR(C17)","v":"⑯"},9327,{"$f":"DEC2HEX(C17)","v":"246F"}]
[null,{"$f":"_xlfn.UNICHAR(C18)","v":"⑰"},9328,{"$f":"DEC2HEX(C18)","v":"2470"}]
[null,"⑱",9329,"2471"]
[null,"⑲",9330,"2472"]
[null,"⑳",9331,"2473"]
[null,"㉑",{"$f":"HEX2DEC(\"3251\")","v":12881},"3251"]
[null,"㉒",{"$f":"C22+1","v":12882},"3252"]
[null,"㉓",{"$f":"C23+1","v":12883},"3253"]
[null,"㉔",12884,"3254"]
[null,"㉕",12885,"3255"]
[null,"㉖",12886,"3256"]
[null,"㉗",12887,"3257"]
[null,"㉘",12888,"3258"]
[null,"㉙",12889,"3259"]
[null,"㉚",12890,"325A"]
[null,"㉛",12891,"325B"]
[null,"㉜",12892,"325C"]
[null,"㉝",12893,"325D"]
[null,"㉞",12894,"325E"]
[null,"㉟",12895,"325F"]
[null,"㊱",{"$f":"HEX2DEC(\"32B1\")","v":12977},"32B1"]
[null,"㊲",{"$f":"C37+1","v":12978},"32B2"]
[null,"㊳",{"$f":"C38+1","v":12979},"32B3"]
[null,"㊴",12980,"32B4"]
[null,"㊵",12981,"32B5"]
[null,"㊶",12982,"32B6"]
[null,"㊷",12983,"32B7"]
[null,"㊸",12984,"32B8"]
[null,"㊹",12985,"32B9"]
[null,"㊺",12986,"32BA"]
[null,"㊻",12987,"32BB"]
[null,"㊼",12988,"32BC"]
[null,"㊽",12989,"32BD"]
[null,"㊾",12990,"32BE"]
[null,"㊿",12991,"32BF"]